[Event "Szansa Chess Open 2022"]
[Site "Warsaw"]
[Date "2022.09.18"]
[Round "10.14"]
[White "Pires, Emanuel Joao Robarts"]
[Black "Derylo, Kamil"]
[Result "0-1"]
[ECO "A13"]
[WhiteElo "1999"]
[BlackElo "2143"]
[Annotator "TA"]
[PlyCount "166"]
[EventDate "2022.09.17"]
[EventCountry "POL"]
[SourceTitle "playchess.com"]
[Source "ChessBase"]
[SourceQuality "1"]
[TimeControl "900+10"]

{[%evp 9,166,20,10,10,20,8,10,16,27,10,22,22,58,30,46,12,18,12,20,-49,-31,-20,-4,-4,-7,-5,0,2,0,-5,-6,-4,0,-85,-66,-60,-65,-125,0,-118,0,0,227,0,37,44,89,73,138,108,147,139,253,212,243,209,158,93,145,82,89,0,0,0,0,0,0,0,0,0,0,0,0,0,0,0,0,0,0,-59,-60,-48,0,0,0,0,0,0,0,0,0,0,0,0,0,0,0,0,0,0,0,0,0,0,0,0,29978,29979,29979,0,0,0,0,0,0,0,0,0,29985,29986,29987,-201,0,-1154,-1034,-1154,-1141,-1760,-1126,-1097,-508,-1101,-1005,-933,-650,-1644,-1576,-1210,-1105,-1760,-1647,-1760,-1564,-1312,-1049,-956,-851,-1564,-411,-1472,-1303,-2250,-2202,-1647,-1615,-1498,-1442,-29988,-29989]} 1. c4 {[%emt 0:00:05]} e6 {[%emt 0:00:03]} 2. b3 {[%emt 0:00:01]} d5 {[%emt 0:00:02]} 3. Bb2 {[%emt 0:00:02]} Nf6 {[%emt 0:00:02]} 4. g3 {[%emt 0:00:01]} b6 {[%emt 0:00:26]} 5. Bg2 {[%emt 0:00:02]} Bb7 {[%emt 0:00:01]} 6. e3 {[%emt 0:00:08] [#] A13: English Opening: 1...e6.} Bd6 $146 {[%emt 0:00:04]} ({Predecessor:} 6... Be7 7. Ne2 O-O 8. O-O Nbd7 9. d3 c5 10. Nd2 Qc7 11. f4 Rad8 12. Qc2 Qb8 {0-1 (58) Koelsch,M (2054)-Trella,T (2234) Playchess.com INT 2007}) 7. Ne2 {[%emt 0:00:03]} Nbd7 {[%emt 0:00:01]} 8. O-O {[%emt 0:00:02] The position is equal.} O-O {[%emt 0:00:02]} 9. d3 {[%emt 0:00:04]} a6 {[%emt 0:00:03]} 10. Nd2 {[%emt 0:00:05]} Qe7 {[%emt 0:00:08]} 11. Rc1 {[%emt 0:00:03]} Rac8 {[%emt 0:00:22]} 12. Re1 {[%emt 0:00:09]} Ba3 {[%emt 0:00:04]} 13. Qc2 {[%emt 0:00:09]} Rfd8 {[%emt 0:00:23]} 14. Nf3 {[%emt 0:00:25]} ({White should try} 14. Bxa3 $11 Qxa3 15. cxd5 Nxd5 16. Nc4) 14... Bxb2 {[%emt 0:00:05]} 15. Qxb2 {[%emt 0:00:01]} c5 {[%emt 0:00:02]} 16. cxd5 {[%emt 0:00:05]} Nxd5 {[%emt 0:00:19]} 17. d4 {[%emt 0:00:33]} N7f6 {[%emt 0:01:06]} 18. Ne5 {[%emt 0:00:19]} Nb4 {[%emt 0:00:58]} 19. Red1 {[%emt 0:00:29]} Bxg2 {[%emt 0:00:05]} 20. Kxg2 {[%emt 0:00:02]} Qb7+ {[%emt 0:00:17]} 21. f3 {[%emt 0:01:00]} (21. Kg1 $11 {keeps the balance.}) 21... Nfd5 $17 {[%emt 0:00:33]} 22. Kf2 {[%emt 0:00:14]} cxd4 {[%emt 0:01:45]} 23. Nxd4 {[%emt 0:01:25]} (23. exd4 $15 Rxc1 24. Nxc1) 23... Rxc1 {[%emt 0:00:35]} 24. Qxc1 {[%emt 0:01:01]} (24. Rxc1 $11 {was the only way to keep the balance.} f6 25. Ndc6 (25. Nxe6 $2 Re8 $19) 25... fxe5 26. Nxd8 Nd3+ 27. Ke2 (27. Kg1 $2 Qd7 $19)) 24... Nxa2 {[%emt 0:00:55]} (24... f6 $1 $17 {[%cal Rf6e5]} 25. Nc4 (25. Nxe6 Re8 $17) 25... Nxa2) 25. Qc6 $11 {[%emt 0:00:39]} Qb8 {[%emt 0:04:50] [#]} (25... Qe7 $11 {and Black has nothing to worry.}) 26. Nd7 $2 {[%emt 0:03:38]} (26. Nxf7 $1 $18 {[%mdl 512]} Re8 27. Nxe6) 26... Qc8 {[%emt 0:01:28]} 27. Nxb6 {[%emt 0:00:27]} Nxb6 {[%emt 0:00:15]} 28. Qxb6 {[%emt 0:00:02][%cal Od4c6]} Kh8 {[%emt 0:02:04]} ({Black should play} 28... Qb8 29. Qxb8 (29. Qxa6 Nb4 $14) 29... Rxb8) 29. Qa5 {[%emt 0:02:02]} e5 {[%emt 0:01:08]} (29... Nc3 $2 30. Rc1 $18) 30. Qxe5 {[%emt 0:01:01]} ({Don't take} 30. Qxa2 exd4 31. exd4 (31. Rxd4 Rxd4 32. exd4 Qc3 $16) 31... Qb7 $16) 30... h6 {[%emt 0:00:53]} (30... Nc3 $16 31. Rd3 f6) 31. Qa5 $1 $18 {[%emt 0:00:59]} Nc3 {[%emt 0:00:40]} 32. Rc1 {[%emt 0:00:02]} Rxd4 {[%emt 0:00:11]} 33. exd4 {[%emt 0:03:59]} Ne4+ {[%emt 0:00:02][%mdl 64] Discovered Attack} 34. fxe4 {[%emt 0:00:06]} Qxc1 $16 {[%emt 0:00:02][%mdl 4096] Endgame KQ-KQ} 35. Qd8+ {[%emt 0:01:20]} (35. d5 $16) 35... Kh7 $11 {[%emt 0:00:02]} 36. Qd5 {[%emt 0:00:06]} Qd2+ {[%emt 0:00:24]} 37. Kf3 {[%emt 0:00:02]} Qxh2 {[%emt 0:00:23]} 38. Qf5+ {[%emt 0:00:04]} Kg8 {[%emt 0:00:03]} 39. Qc8+ {[%emt 0:00:23]} Kh7 {[%emt 0:00:02]} 40. Qf5+ {[%emt 0:00:07]} Kg8 {[%emt 0:00:02]} 41. d5 {[%emt 0:00:12]} Qh1+ {[%emt 0:00:15]} 42. Ke3 {[%emt 0:00:01]} Qe1+ {[%emt 0:00:07]} 43. Kd3 {[%emt 0:00:04]} Qxg3+ {[%emt 0:00:06]} 44. Kc4 {[%emt 0:00:07]} (44. Kd4 $11) 44... Qc7+ $15 {[%emt 0:00:06]} 45. Kd3 {[%emt 0:00:20]} Qg3+ {[%emt 0:00:34]} (45... Kf8 $1 $15 {is superior.}) 46. Kd4 $11 {[%emt 0:00:19]} Qxb3 {[%emt 0:00:36]} 47. Qc8+ {[%emt 0:00:01]} Kh7 {[%emt 0:00:00]} 48. Qxa6 {[%emt 0:00:24]} Qb2+ {[%emt 0:00:16]} 49. Kc5 {[%emt 0:00:08]} h5 {[%emt 0:00:01]} 50. Qd3 {[%emt 0:00:09]} h4 {[%emt 0:00:15]} 51. d6 {[%emt 0:00:01]} Qe5+ {[%emt 0:00:07]} 52. Kc6 {[%emt 0:00:06]} Qe6 {[%emt 0:00:04]} 53. Kc7 {[%emt 0:00:08]} h3 {[%emt 0:00:01] ...h2 is the strong threat.} 54. e5+ {[%emt 0:00:11]} g6 {[%emt 0:00:01]} 55. Qd4 {[%emt 0:00:05] Threatens to win with d7.} g5 {[%emt 0:00:09]} 56. d7 {[%emt 0:00:05]} h2 {[%emt 0:00:18]} 57. Qe4+ {[%emt 0:00:07]} Qg6 $2 {[%emt 0:00:35][%mdl 8192]} (57... f5 $11 58. Qe1 Qe7) 58. Qg2 {[%emt 0:00:05]} Qh5 {[%emt 0:00:18]} 59. Qc2+ $2 {[%emt 0:00:40]} (59. Qh1 Qe2 60. d8=Q Qc4+ 61. Kd6 Qe6+ 62. Kc5 Qxe5+ 63. Qhd5 Qc3+ 64. Kd6) 59... Kg7 {[%emt 0:00:08]} 60. d8=Q {[%emt 0:00:06] White wants to mate with Qf6+.} h1=Q {[%emt 0:00:01]} 61. Qf6+ {[%emt 0:00:11]} (61. Qf5 Qc1+ 62. Kb8 Qh6 63. Qff6+ Qxf6 64. Qxf6+ Kg8 $17) 61... Kg8 {[%emt 0:00:02]} 62. Qd8+ {[%emt 0:00:17]} Kg7 {[%emt 0:00:06]} 63. Qc3 {[%emt 0:00:13] e6+ would kill now.} (63. Qf5 Qc1+ 64. Kb8 Qh6 65. Qff6+ Qxf6 66. Qxf6+ Kg8 $17) 63... Q1h3 $2 {[%emt 0:00:11][%mdl 8192]} (63... Q1f3 $11 64. Qxf3 Qxf3 65. Qxg5+ Kf8) 64. Qf6+ $1 {[%emt 0:00:11]} Kg8 {[%emt 0:00:01]} 65. Qc5 $4 {[%emt 0:00:06][%mdl 8192] [#]} (65. Qb4 {mates} Qh6 66. Qb8+ Qf8 67. Qxg5+ Kh7 68. Qxf8 Qc3+ 69. Kd7 Qd4+ 70. Qd6 (70. Ke8 Qa4+ 71. Kxf7 Qc4+ 72. Ke7 Qe6+ 73. Kxe6 $11)) 65... Qg6 $2 {[%emt 0:00:30] The board is on fire.} (65... Q3f3 $1 $19 {[%cal Rf3f6] Hoping for ...Qxf6.} 66. Qce7 (66. Qd8+ $2 Kh7 $19) 66... Qxf6 67. Qxf6 g4) 66. Qd8+ $2 {[%emt 0:00:10][%mdl 8192]} (66. Qxg6+ $11 fxg6 67. Qc6) 66... Kh7 $19 {[%emt 0:00:01]} 67. Qde7 {[%emt 0:00:16]} Qhe6 {[%emt 0:00:06]} 68. Qf8 {[%emt 0:00:07]} Qa6 {[%emt 0:00:15]} 69. Qfe7 {[%emt 0:00:10]} Qad3 {[%emt 0:00:12]} (69... Qf5 $142 {[%csl Ga6][%cal Rf5c8]} 70. Qd7 {[#]} Qb7+ $3 {[%mdl 512]} 71. Kxb7 Qxd7+ 72. Kb8 g4) 70. Qf8 {[%emt 0:00:12]} (70. e6 $142 Qg3+ 71. Kc8) 70... Qdf5 {[%emt 0:00:22] aiming for ...Qge6.} 71. Qfe7 {[%emt 0:00:11]} Qge6 {[%emt 0:00:06]} 72. Kd8 {[%emt 0:00:10] Prevents Qc8+.} Qxe7+ {[%emt 0:00:13]} 73. Kxe7 {[%emt 0:00:08] KQ-KQ} Kg7 {[%emt 0:00:15]} 74. Qd4 {[%emt 0:00:07]} Qe6+ {[%emt 0:00:02]} 75. Kd8 {[%emt 0:00:01]} g4 {[%emt 0:00:05] Strongly threatening ...g3.} 76. Qf4 Qg6 {[%emt 0:00:07] And now ...g3 would win.} 77. Qg3 {[%emt 0:00:28]} Qf5 {[%emt 0:00:02] White must now prevent ...Qf3.} 78. Ke7 {[%emt 0:00:08]} Qe6+ {[%emt 0:00:06]} 79. Kd8 {[%emt 0:00:01]} Kg6 {[%emt 0:00:14]} 80. Qf4 {[%emt 0:00:16]} Qf5 {[%emt 0:00:06]} 81. Qh2 {[%emt 0:00:19]} Qg5+ {[%emt 0:00:25]} 82. Kd7 {[%emt 0:00:05]} g3 {[%emt 0:00:04]} 83. Qc2+ {[%emt 0:00:14]} Qf5+ {[%emt 0:00:03] Weighted Error Value: White=0.30/Black=0.31} 0-1

[Event "Szansa Chess Open 2022"]
[Site "Warsaw"]
[Date "2022.09.18"]
[Round "10.15"]
[White "Smieszek, Wojciech"]
[Black "Bespalov, Ivan"]
[Result "1-0"]
[ECO "B01"]
[WhiteElo "2082"]
[BlackElo "1841"]
[Annotator "TA"]
[PlyCount "81"]
[EventDate "2022.09.17"]
[EventCountry "POL"]
[SourceTitle "playchess.com"]
[Source "ChessBase"]
[SourceQuality "1"]
[TimeControl "900+10"]

{[%evp 9,81,73,70,68,66,65,66,59,69,51,66,52,48,41,64,50,69,60,83,45,48,0,10,14,14,15,39,0,0,0,14,-33,-21,-27,0,0,0,0,0,0,0,-134,0,0,0,0,0,-8,-8,-8,-8,-14,0,0,0,0,0,0,0,0,0,0,0,0,16,16,20,20,29977,29978,29977,29978,29980,29981]} 1. e4 {[%emt 0:00:02]} d5 {[%emt 0:00:01]} 2. exd5 {[%emt 0:00:01]} Qxd5 {[%emt 0:00:01]} 3. Nf3 {[%emt 0:00:02]} Nf6 {[%emt 0:00:07]} 4. d4 {[%emt 0:00:01]} c6 {[%emt 0:00:04]} 5. c4 {[%emt 0:00:02]} Qd8 {[%emt 0:00:01]} 6. Be2 {[%emt 0:00:03] B01: Scandinavian Defence.} Bg4 {[%emt 0:00:01]} 7. O-O {[%emt 0:00:02]} e6 {[%emt 0:00:01]} 8. Nc3 {[%emt 0:00:11] White is slightly better.} Be7 {[%emt 0:00:03]} 9. Be3 {[%emt 0:00:08]} O-O {[%emt 0:00:03]} 10. Ne5 {[%emt 0:00:28]} Bxe2 {[%emt 0:00:09]} 11. Qxe2 {[%emt 0:00:02]} Re8 {[%emt 0:00:06]} 12. Rad1 {[%emt 0:00:07]} Nbd7 {[%emt 0:00:02][%cal Bb8d7,Bd7f8,Bf8g6,Bg6h4][%mdl 32]} 13. f4 {[%emt 0:00:42] [#]} Nf8 $146 {[%emt 0:00:05]} ({Predecessor:} 13... Qa5 14. Kh1 Rad8 15. Rd3 a6 16. a3 Qc7 17. Rfd1 b5 18. c5 Nd5 19. Nxd5 exd5 {1-0 (31) Monev,A (2168)-Krastev,K (1915) Teteven 2014}) 14. Qf3 {[%emt 0:00:16] White has more active pieces. The black rooks are badly placed.} Ng6 {[%emt 0:00:03]} 15. Ne4 {[%emt 0:00:24]} (15. Bf2 $14) 15... Nh4 {[%emt 0:00:19]} 16. Nxf6+ {[%emt 0:00:10]} Bxf6 {[%emt 0:00:09]} 17. Qe2 {[%emt 0:01:39]} Nf5 {[%emt 0:00:03]} 18. g4 {[%emt 0:00:09]} Nxe3 {[%emt 0:00:03]} 19. Qxe3 {[%emt 0:00:01]} g6 {[%emt 0:00:10]} 20. f5 {[%emt 0:01:31]} (20. g5 $11 Bg7 21. Kg2) 20... exf5 $15 {[%emt 0:00:08]} 21. gxf5 {[%emt 0:00:01]} Bxe5 {[%emt 0:00:16]} 22. dxe5 {[%emt 0:00:03]} Qb6 {[%emt 0:00:05]} 23. c5 {[%emt 0:01:07]} Qxb2 {[%emt 0:00:48]} 24. fxg6 {[%emt 0:00:02]} hxg6 {[%emt 0:00:21]} 25. Rd7 {[%emt 0:06:45]} (25. Rxf7 $11 Kxf7 26. Qf4+ Kg8 27. Qc4+ Kh8 28. Qh4+ Kg8 29. Qc4+ Kh8 30. Qh4+ Kg8 31. Qc4+) 25... Qxe5 {[%emt 0:02:19]} (25... Rxe5 $17 26. Qf2 Rg5+ 27. Kh1 Qxf2 28. Rxf2 Rf8 29. Rxb7 a5) 26. Qxe5 $11 {[%emt 0:00:46]} Rxe5 {[%emt 0:00:02]} 27. Rfxf7 $17 {[%emt 0:00:02][%mdl 4096] Endgame KRR-KRR} Rg5+ {[%emt 0:03:52]} 28. Kf2 {[%emt 0:00:46]} Rf8 {[%emt 0:00:05]} 29. Rxf8+ {[%emt 0:00:05]} Kxf8 {[%emt 0:00:02]} 30. Rxb7 {[%emt 0:00:02]} Rxc5 {[%emt 0:00:01]} 31. Rxa7 $11 {[%emt 0:00:02] KR-KR} Rh5 {[%emt 0:00:09]} 32. Kg3 {[%emt 0:00:08]} Rg5+ {[%emt 0:00:01]} 33. Kf2 {[%emt 0:00:20]} Rh5 {[%emt 0:00:01]} 34. Kg2 {[%emt 0:00:02]} Rg5+ {[%emt 0:00:01]} 35. Kh1 {[%emt 0:00:01]} c5 {[%emt 0:00:16]} 36. a4 {[%emt 0:00:05][%cal Ba2a4,Ba4a5,Ba5a6,Ba6a7][%mdl 32]} c4 {[%emt 0:00:01]} 37. Rc7 {[%emt 0:00:02]} Rg4 {[%emt 0:00:02]} 38. a5 {[%emt 0:00:24] White threatens a6 and mate.} Rg5 $2 {[%emt 0:00:04][%mdl 8192] [#]} (38... c3 $11) 39. a6 {White mates.} Ra5 {[%emt 0:00:01]} 40. a7 {[%emt 0:00:05]} c3 {[%emt 0:00:01]} 41. Rc8+ {[%emt 0:00:07] Weighted Error Value: White=0.17 (very precise) /Black=0.30} 1-0

[Event "Szansa Chess Open 2022"]
[Site "Warsaw"]
[Date "2022.09.18"]
[Round "10.16"]
[White "Jarzebowski, Kacper"]
[Black "Adamski, Adam"]
[Result "1-0"]
[ECO "A05"]
[WhiteElo "2106"]
[BlackElo "1886"]
[Annotator "TA"]
[PlyCount "91"]
[EventDate "2022.09.17"]
[EventCountry "POL"]
[SourceTitle "playchess.com"]
[Source "ChessBase"]
[SourceQuality "1"]
[TimeControl "900+10"]

{[%evp 16,91,17,-39,-45,-38,15,15,2,2,10,7,25,20,21,20,21,22,22,22,30,29,56,38,37,37,93,69,70,64,64,67,67,65,65,64,116,116,116,116,116,118,208,131,285,268,268,273,593,565,571,566,702,704,668,628,2031,1891,5739,5702,12834,12833,12837,12836,12836,12836,12839,12839,12840,12840,12840,12839,12841,12842,12843,12843,12844,12845]} 1. Nf3 {[%emt 0:00:01]} Nf6 {[%emt 0:00:01]} 2. g3 {[%emt 0:00:01]} g6 {[%emt 0:00:02]} 3. Bg2 {[%emt 0:00:01]} d5 {[%emt 0:00:01]} 4. O-O {[%emt 0:00:01]} Bg7 {[%emt 0:00:01]} 5. d3 {[%emt 0:00:03]} Nbd7 {[%emt 0:00:34]} 6. Nc3 {[%emt 0:00:05]} c6 {[%emt 0:00:03]} 7. e4 {[%emt 0:00:03]} dxe4 {[%emt 0:00:01]} 8. Nxe4 {[%emt 0:00:11]} O-O {[%emt 0:00:56]} 9. c3 {[%emt 0:00:11]} (9. Ned2 $11) 9... Nxe4 $15 {[%emt 0:00:07] A07: Réti Opening: New York and Capablanca Systems.} 10. dxe4 {[%emt 0:00:00]} e5 {[%emt 0:00:03] [#]} (10... Nc5 $15) 11. Bg5 $146 {[%emt 0:00:19]} ({Predecessor:} 11. Be3 Qc7 12. Qc2 c5 13. Rad1 Nf6 14. Ng5 Ng4 15. Bc1 c4 16. h3 Nf6 17. f4 {½-½ (46) Bueno,M (1661)-Fedrizzi,R (1962) Cuiaba 2021}) 11... Qc7 {[%emt 0:01:41] The position is equal.} 12. Qc2 {[%emt 0:00:43]} Re8 {[%emt 0:00:55]} 13. Rfd1 {[%emt 0:01:01]} Nf8 {[%emt 0:00:42]} 14. Nd2 {[%emt 0:00:40]} Bg4 {[%emt 0:00:19]} 15. Bf3 {[%emt 0:00:44]} Bxf3 {[%emt 0:00:11]} 16. Nxf3 {[%emt 0:00:01]} f6 {[%emt 0:00:09]} 17. Be3 {[%emt 0:00:03]} b6 {[%emt 0:00:30]} 18. h4 {[%emt 0:00:10][%cal Bh2h4,Bh4h5][%mdl 32]} Rad8 {[%emt 0:00:03]} 19. a4 {[%emt 0:00:12][%cal Oa4a5]} Rxd1+ {[%emt 0:00:04]} 20. Rxd1 {[%emt 0:00:01][%cal Oh4h5]} Rd8 {[%emt 0:00:52]} (20... h5 $14) 21. Qb3+ {[%emt 0:00:28]} Kh8 {[%emt 0:00:01]} 22. h5 $36 {[%emt 0:00:55][%mdl 2048] [#] And now Rxd8 would win. White has some pressure. White is much more active.} Rxd1+ {[%emt 0:00:08]} 23. Qxd1 {[%emt 0:00:01] Hoping for h6.} Qd7 {[%emt 0:00:01]} 24. Qe2 {[%emt 0:01:40] h6 is the strong threat.} gxh5 {[%emt 0:01:04]} 25. Nh4 $1 {[%emt 0:00:07]} Qg4 {[%emt 0:01:16]} (25... c5 $14) 26. Qc4 {[%emt 0:01:01][%mdl 1024] White has strong compensation.} Qe6 {[%emt 0:00:02] [#]} 27. Qa6 {[%emt 0:00:27]} Qd7 {[%emt 0:00:31]} 28. a5 {[%emt 0:00:10]} Ng6 {[%emt 0:02:51]} (28... bxa5 $16 29. Bxa7 Ne6) 29. Nf5 {[%emt 0:00:13][%cal Oe3b6]} h4 $2 {[%emt 0:00:02]} (29... bxa5 $16 {might work better.} 30. Qxa5 (30. Bxa7 h6 $14) 30... h4) 30. axb6 $18 {[%emt 0:00:57]} axb6 {[%emt 0:00:15]} 31. Nxh4 {[%emt 0:00:14]} b5 $2 {[%emt 0:03:06]} (31... Qd1+ $2 32. Kh2 $18) (31... Bf8 {is a better chance.} 32. Qa8 (32. Qxb6 Nxh4 33. gxh4 Qg4+ 34. Kf1 Qd1+ 35. Kg2 Qg4+ 36. Kf1 Qd1+ 37. Kg2 Qg4+ 38. Kf1 $11) 32... Kg8) 32. Qa8+ {[%emt 0:00:12] White is clearly winning.} Nf8 {[%emt 0:00:03]} 33. Nf5 {[%emt 0:00:12]} Qd1+ {[%emt 0:01:12]} 34. Kg2 {[%emt 0:00:11] aiming for Bc5.} Qd7 {[%emt 0:01:05]} 35. Bc5 {[%emt 0:00:16]} Kg8 {[%emt 0:00:28]} 36. Nxg7 {[%emt 0:03:18]} Qxg7 {[%emt 0:00:05]} 37. Qxc6 {[%emt 0:00:22][%mdl 4096] Endgame KQB-KQN} Qg4 {[%emt 0:00:46]} 38. Qa8 {[%emt 0:00:10][%csl Gc5][%cal Ra8f8]} Qg7 {[%emt 0:00:06]} 39. Qxf8+ {[%emt 0:00:03]} Qxf8 {[%emt 0:00:01]} 40. Bxf8 {[%emt 0:00:02]} Kxf8 {[%emt 0:00:01] KP-KP} 41. Kh3 {[%emt 0:00:01]} Kf7 {[%emt 0:00:07]} 42. Kg4 {[%emt 0:00:01]} Ke6 {[%emt 0:00:06]} 43. b3 {[%emt 0:00:02]} h5+ {[%emt 0:00:13]} 44. Kxh5 {[%emt 0:00:03]} f5 {[%emt 0:00:01]} 45. exf5+ {[%emt 0:00:16]} Kxf5 {[%emt 0:00:01]} 46. c4 {[%emt 0:00:01] White took control after the opening.  Weighted Error Value: White=0.10 (very precise) /Black=0.40} 1-0

[Event "Szansa Chess Open 2022"]
[Site "Warsaw"]
[Date "2022.09.18"]
[Round "10.17"]
[White "Ivanytska, Liudmyla"]
[Black "Kutowski, Marcel"]
[Result "1-0"]
[ECO "B96"]
[WhiteElo "1845"]
[BlackElo "2046"]
[Annotator "TA"]
[PlyCount "77"]
[EventDate "2022.09.17"]
[EventCountry "POL"]
[SourceTitle "playchess.com"]
[Source "ChessBase"]
[SourceQuality "1"]
[TimeControl "900+10"]

{[%evp 19,77,-13,-12,-20,-24,-21,16,0,0,-12,-20,0,0,-66,-74,-113,-95,-94,-38,-65,0,-203,-212,-258,-54,-59,-59,-108,-113,-127,-127,-127,-116,-131,-133,-120,-122,-112,-33,-123,18,24,12,16,18,16,29,29,33,31,32,23,32,27,33,23,55,46,50,61]} 1. e4 {[%emt 0:00:01]} c5 {[%emt 0:00:01]} 2. Nf3 {[%emt 0:00:01]} d6 {[%emt 0:00:01]} 3. d4 {[%emt 0:00:01]} cxd4 {[%emt 0:00:01]} 4. Nxd4 {[%emt 0:00:01]} Nf6 {[%emt 0:00:02]} 5. Nc3 {[%emt 0:00:01]} a6 {[%emt 0:00:01]} 6. Bg5 {[%emt 0:00:02]} e6 {[%emt 0:00:03]} 7. f4 {[%emt 0:00:01]} Nbd7 {[%emt 0:00:01]} 8. Qf3 {[%emt 0:00:04]} Qc7 {[%emt 0:00:02]} 9. O-O-O {[%emt 0:00:03]} b5 {[%emt 0:00:00]} 10. Bd3 {[%emt 0:00:02]} Bb7 {[%emt 0:00:23]} 11. Bxf6 {[%emt 0:00:07] B96: Sicilian Najdorf: 6 Bg5 e6 7 f4, lines other than 7...Qb6 and 7...Be7.} Nxf6 {[%emt 0:00:06]} 12. g4 {[%emt 0:00:03]} Be7 {[%emt 0:00:03]} 13. h4 {[%emt 0:00:39] The position is equal.} b4 {[%emt 0:00:09]} 14. Nce2 {[%emt 0:00:02]} d5 {[%emt 0:00:47][%cal Rd5e4]} 15. e5 {[%emt 0:00:08] [#]} Ne4 $146 {[%emt 0:00:37]} ({Predecessor:} 15... Nd7 16. g5 Nc5 17. h5 O-O-O 18. g6 hxg6 19. hxg6 f6 20. Nxe6 Nxe6 21. Qg4 Kb8 22. Qxe6 Rxh1 23. Rxh1 {½-½ (39) Williams,J (2111)-Wu,C (2204) Wheeling 2012}) 16. Bxe4 {[%emt 0:00:34]} (16. Kb1 $11) 16... dxe4 $15 {[%emt 0:00:02]} 17. Qg3 {[%emt 0:00:13]} O-O {[%emt 0:00:29]} 18. f5 {[%emt 0:00:07]} Bd5 {[%emt 0:01:04]} (18... Rac8 $1 $17 {[%cal Oe4e3] Strongly threatening ...e3!} 19. Rhf1 a5) 19. Kb1 {[%emt 0:00:25]} Rfc8 {[%emt 0:01:12]} (19... Rfd8 $15) 20. Rc1 $2 {[%emt 0:02:04]} (20. g5 $1 $11 {and White stays safe.}) 20... a5 $1 $19 {[%emt 0:00:38]} 21. g5 {[%emt 0:01:54]} exf5 {[%emt 0:00:54]} ({Stronger than} 21... Qc4 22. b3 Qa6 23. a4 exf5 24. Nxf5 $11) (21... a4 $1 $19 {...Qc4 is the strong threat.} 22. g6 Qc4 23. gxf7+ Kxf7 24. fxe6+ (24. Rcg1 $2 Qxa2+ 25. Kc1 Ke8 $19) 24... Kg8) 22. Nxf5 $15 {[%emt 0:00:02]} Bf8 {[%emt 0:00:11]} 23. Nf4 {[%emt 0:01:12]} (23. Rhd1 $15 Qc4 24. Qb3) 23... Qxe5 $17 {[%emt 0:01:20]} 24. Nh6+ {[%emt 0:00:46]} gxh6 {[%emt 0:01:32]} 25. gxh6+ {[%emt 0:00:01] [#]} Bg7 $1 {[%emt 0:00:17]} 26. Qxg7+ {[%emt 0:00:26]} Qxg7 {[%emt 0:00:06]} 27. hxg7 {[%emt 0:00:08]} Bb7 {[%emt 0:01:07]} 28. Rhg1 {[%emt 0:00:28]} Re8 {[%emt 0:01:11]} ({Black should play} 28... Rc5 $17 {Hoping for ...Re8.} 29. Rce1 Rac8) 29. Rcf1 {[%emt 0:00:14] [#]} (29. Nh5 $15 Re6 30. Rce1) 29... Ra6 {[%emt 0:00:15]} (29... Re5 $1 $17 {And now ...Rae8 would win.} 30. Re1 Rae8) 30. Nh5 $11 {[%emt 0:00:06] aiming for Kc1.} e3 {[%emt 0:00:11]} 31. Nf6+ $1 {[%emt 0:00:14]} Rxf6 {[%emt 0:00:05]} 32. Rxf6 {[%emt 0:00:01][%mdl 4096] Endgame KRR-KRB} e2 {[%emt 0:00:53]} 33. Re1 {[%emt 0:00:03]} Bc8 {[%emt 0:03:17]} 34. Rd6 {[%emt 0:01:28] Inhibits Rd8.} Bg4 {[%emt 0:01:01]} 35. Kc1 {[%emt 0:00:55]} h5 {[%emt 0:01:07]} 36. c3 {[%emt 0:00:29]} bxc3 {[%emt 0:00:39]} 37. bxc3 {[%emt 0:00:01]} f5 {[%emt 0:00:10]} 38. Kd2 {[%emt 0:00:10]} f4 {[%emt 0:00:12]} 39. Rc1 {[%emt 0:00:21] Weighted Error Value: White=0.22 (precise) /Black=0.26 (precise)} 1-0